[Event "POL-chT 2 Liga 2019"]
[Site "Poronin"]
[Date "2019.09.07"]
[Round "1.22"]
[White "Puczylowski, Marcin"]
[Black "Kowalak, Piotr"]
[Result "1-0"]
[ECO "B22"]
[WhiteElo "2115"]
[BlackElo "2108"]
[Annotator "ChessBase"]
[PlyCount "87"]
[EventDate "2019.09.07"]
[EventType "team-tourn"]
[EventCountry "POL"]
[SourceTitle "playchess.com"]
[Source "ChessBase"]
[SourceQuality "1"]
[TimeControl "40/5400+30:1800+30"]

1. e4 {[%emt 0:00:00]} c5 {[%emt 0:00:00]} 2. c3 {[%emt 0:00:00]} g6 {[%emt 0:00:00]} 3. d4 {[%emt 0:00:14]} cxd4 {[%emt 0:00:00]} 4. cxd4 {[%emt 0:00:26]} d5 {[%emt 0:00:01]} 5. exd5 {[%emt 0:05:01]} Nf6 {[%emt 0:00:09]} 6. Bb5+ {[%emt 0:01:50]} Nbd7 {[%emt 0:00:11]} 7. Nc3 {[%emt 0:00:50]} Bg7 {[%emt 0:00:10]} 8. d6 {[%emt 0:04:34]} exd6 {[%emt 0:03:36]} 9. Qe2+ {[%emt 0:05:03]} Qe7 {[%emt 0:03:57]} 10. Bf4 {[%emt 0:04:38]} d5 {[%emt 0:09:39]} 11. Qxe7+ {[%emt 0:10:21]} Kxe7 {[%emt 0:00:03]} 12. Nf3 {[%emt 0:01:22]} Nb6 {[%emt 0:10:14]} 13. O-O {[%emt 0:06:38]} h6 {[%emt 0:05:14]} 14. a4 {[%emt 0:13:32]} a6 {[%emt 0:25:48]} 15. a5 {[%emt 0:00:26]} Nbd7 {[%emt 0:00:43]} 16. Rfe1+ {[%emt 0:02:49]} Kd8 {[%emt 0:01:56]} 17. Ba4 {[%emt 0:01:15]} Nb8 {[%emt 0:08:39]} 18. Ne5 {[%emt 0:04:18]} Be6 {[%emt 0:10:12]} 19. Nxg6 {[%emt 0:06:15]} Rg8 {[%emt 0:00:14]} 20. Ne5 {[%emt 0:02:08]} Nbd7 {[%emt 0:07:12]} 21. Ra3 {[%emt 0:05:43]} Nh5 {[%emt 0:06:36]} 22. Bxd7 {[%emt 0:02:04]} Nxf4 {[%emt 0:01:17]} 23. Bxe6 {[%emt 0:00:21]} Bxe5 {[%emt 0:02:20]} 24. dxe5 {[%emt 0:09:06]} Rxg2+ {[%emt 0:01:06]} 25. Kh1 {[%emt 0:03:33]} fxe6 {[%emt 0:00:07]} 26. Nd1 {[%emt 0:03:14]} Rg5 {[%emt 0:00:40]} 27. Rf3 {[%emt 0:01:26]} Ng6 {[%emt 0:00:44]} 28. Rf6 {[%emt 0:02:42]} Ke7 {[%emt 0:01:09]} 29. f4 {[%emt 0:00:15]} Rg4 {[%emt 0:00:33]} 30. Ne3 {[%emt 0:00:56]} Rxf4 {[%emt 0:01:41]} 31. Rxg6 {[%emt 0:00:04]} Raf8 {[%emt 0:00:33]} 32. Rxh6 {[%emt 0:02:24]} Re4 {[%emt 0:00:20]} 33. Rh7+ {[%emt 0:00:35]} Ke8 {[%emt 0:00:08]} 34. Kg2 {[%emt 0:01:02]} Rg8+ {[%emt 0:00:44]} 35. Kf3 {[%emt 0:00:28]} Rf8+ {[%emt 0:00:13]} 36. Ke2 {[%emt 0:01:25]} Rxe5 {[%emt 0:00:58]} 37. Rxb7 {[%emt 0:00:53]} d4 {[%emt 0:00:36]} 38. Kd3 {[%emt 0:00:24]} dxe3 {[%emt 0:00:14]} 39. Rxe3 {[%emt 0:00:19]} Rd5+ {[%emt 0:00:47]} 40. Kc3 {[%emt 0:00:00]} Rf6 {[%emt 0:00:00]} 41. Rh3 {[%emt 0:02:17]} Rf8 {[%emt 0:06:25]} 42. Rb8+ {[%emt 0:04:33]} Rd8 {[%emt 0:01:15]} 43. Rb6 {[%emt 0:00:10]} Rc8+ {[%emt 0:00:42]} 44. Kd4 1-0

[Event "POL-chT 2 Liga 2019"]
[Site "Poronin"]
[Date "2019.09.07"]
[Round "1.23"]
[White "Krawiec, Grzegorz"]
[Black "Zurkowski, Andrzej"]
[Result "0-1"]
[ECO "B06"]
[WhiteElo "1792"]
[BlackElo "2029"]
[Annotator "NA"]
[PlyCount "96"]
[EventDate "2019.09.07"]
[EventType "team-tourn"]
[EventCountry "POL"]
[SourceTitle "playchess.com"]
[Source "ChessBase"]
[SourceQuality "1"]
[TimeControl "40/5400+30:1800+30"]

1. e4 {[%emt 0:00:00]} d6 {[%emt 0:00:25]} 2. d4 {[%emt 0:00:38]} g6 {[%emt 0:01:06]} 3. Nc3 {[%emt 0:01:37]} Bg7 {[%emt 0:02:29]} 4. Be3 {[%emt 0:02:59]} c6 {[%emt 0:02:47]} 5. Qd2 {[%emt 0:02:31]} Nd7 {[%emt 0:01:54]} 6. Bc4 {[%emt 0:08:29]} Ngf6 {[%emt 0:08:20]} 7. a4 {[%emt 0:07:50]} d5 {[%emt 0:08:04]} 8. exd5 {[%emt 0:14:24]} Nb6 {[%emt 0:00:20]} 9. Bb3 {[%emt 0:00:01]} Nbxd5 {[%emt 0:02:16]} 10. Nxd5 {[%emt 0:00:28]} cxd5 {[%emt 0:00:59]} 11. f3 {[%emt 0:11:46]} O-O {[%emt 0:05:26]} 12. Ne2 {[%emt 0:03:37]} a5 {[%emt 0:13:04]} 13. Bh6 {[%emt 0:03:57]} Re8 {[%emt 0:02:58]} 14. Bxg7 {[%emt 0:02:19]} Kxg7 {[%emt 0:00:06]} 15. O-O {[%emt 0:01:36]} b6 {[%emt 0:00:41]} 16. Rfe1 {[%emt 0:01:04]} Ba6 {[%emt 0:00:29]} 17. c3 {[%emt 0:01:50]} Qd6 {[%emt 0:01:34]} 18. Nf4 {[%emt 0:09:01]} e6 {[%emt 0:09:21]} 19. Nd3 {[%emt 0:01:57]} Nd7 {[%emt 0:14:41]} 20. Ne5 {[%emt 0:03:47]} Nf8 {[%emt 0:01:12]} 21. Ng4 {[%emt 0:02:22]} Nd7 {[%emt 0:05:46]} 22. Qh6+ {[%emt 0:05:55]} Kg8 {[%emt 0:00:02]} 23. h4 {[%emt 0:00:37]} Qf8 {[%emt 0:02:01]} 24. Qf4 {[%emt 0:01:09]} h5 {[%emt 0:01:58]} 25. Nh6+ {[%emt 0:02:37]} Kg7 {[%emt 0:01:36]} 26. g4 {[%emt 0:00:10]} hxg4 {[%emt 0:01:09]} 27. fxg4 {[%emt 0:01:58]} f6 {[%emt 0:04:07]} 28. Bc2 {[%emt 0:04:25]} Kh7 {[%emt 0:03:46]} 29. g5 {[%emt 0:01:46]} fxg5 {[%emt 0:01:22]} 30. Qc7 {[%emt 0:03:27]} Qe7 {[%emt 0:02:24]} 31. Ng4 {[%emt 0:00:37]} Kg7 {[%emt 0:00:53]} 32. hxg5 {[%emt 0:00:31]} Qxg5 {[%emt 0:00:14]} 33. Qg3 {[%emt 0:00:29]} Nf6 {[%emt 0:00:31]} 34. Bd1 {[%emt 0:00:12]} Ne4 {[%emt 0:01:54]} 35. Qe5+ {[%emt 0:00:51]} Qxe5 {[%emt 0:00:02]} 36. Nxe5 {[%emt 0:00:19]} Nd6 {[%emt 0:01:05]} 37. Bg4 {[%emt 0:00:25]} Nf5 {[%emt 0:00:24]} 38. Kf2 {[%emt 0:00:46]} Rh8 {[%emt 0:00:36]} 39. Nd7 {[%emt 0:00:25]} Rae8 {[%emt 0:00:41]} 40. Nxb6 {[%emt 0:00:00]} Rh2+ {[%emt 0:00:00]} 41. Kg1 {[%emt 0:12:29]} Reh8 {[%emt 0:04:37]} 42. Bf3 {[%emt 0:00:03]} Rxb2 {[%emt 0:01:31]} 43. Rxe6 {[%emt 0:00:01]} Rh3 {[%emt 0:01:16]} 44. Nxd5 {[%emt 0:13:37]} Rg3+ {[%emt 0:06:35]} 45. Kh1 {[%emt 0:00:02]} Rxf3 {[%emt 0:00:42]} 46. Rxa6 {[%emt 0:01:39]} Rff2 {[%emt 0:00:48]} 47. Kg1 {[%emt 0:03:38]} Rg2+ {[%emt 0:00:19]} 48. Kh1 {[%emt 0:00:24]} Ng3# {[%emt 0:00:06]} 0-1

[Event "POL-chT 2 Liga 2019"]
[Site "Poronin"]
[Date "2019.09.07"]
[Round "1.24"]
[White "Kasperek, Joanna"]
[Black "Karykowska, Anna"]
[Result "1-0"]
[ECO "B46"]
[WhiteElo "2045"]
[BlackElo "1895"]
[Annotator "NA"]
[PlyCount "111"]
[EventDate "2019.09.07"]
[EventType "team-tourn"]
[EventCountry "POL"]
[SourceTitle "playchess.com"]
[Source "ChessBase"]
[SourceQuality "1"]
[TimeControl "40/5400+30:1800+30"]

1. e4 {[%emt 0:00:00]} c5 {[%emt 0:00:00]} 2. Nf3 {[%emt 0:00:00]} a6 {[%emt 0:00:00]} 3. Nc3 {[%emt 0:01:02]} e6 {[%emt 0:00:32]} 4. d4 {[%emt 0:01:11]} cxd4 {[%emt 0:00:08]} 5. Nxd4 {[%emt 0:00:08]} Nc6 {[%emt 0:00:06]} 6. Be2 {[%emt 0:01:52]} Qc7 {[%emt 0:01:49]} 7. O-O {[%emt 0:02:56]} Nf6 {[%emt 0:01:03]} 8. Be3 {[%emt 0:03:19]} Be7 {[%emt 0:04:42]} 9. f4 {[%emt 0:04:25]} d6 {[%emt 0:03:22]} 10. a4 {[%emt 0:03:42]} O-O {[%emt 0:04:07]} 11. Kh1 {[%emt 0:01:52]} Bd7 {[%emt 0:03:55]} 12. Nb3 {[%emt 0:03:46]} Na5 {[%emt 0:04:07]} 13. e5 {[%emt 0:14:30]} Ne8 {[%emt 0:03:49]} 14. Nxa5 {[%emt 0:32:17]} Qxa5 {[%emt 0:00:07]} 15. Ne4 {[%emt 0:00:23]} Qc7 {[%emt 0:09:35]} 16. a5 {[%emt 0:02:17]} Bc6 {[%emt 0:08:12]} 17. Bb6 {[%emt 0:01:45]} Qb8 {[%emt 0:01:35]} 18. Qd4 {[%emt 0:03:34]} Bxe4 {[%emt 0:16:34]} 19. Qxe4 {[%emt 0:00:05]} d5 {[%emt 0:01:07]} 20. Qd4 {[%emt 0:04:48]} Nc7 {[%emt 0:02:45]} 21. c3 {[%emt 0:02:20]} Nb5 {[%emt 0:01:23]} 22. Qe3 {[%emt 0:01:59]} Qe8 {[%emt 0:03:08]} 23. Bd3 {[%emt 0:03:14]} g6 {[%emt 0:01:28]} 24. Rf3 {[%emt 0:01:52]} f5 {[%emt 0:06:05]} 25. exf6 {[%emt 0:01:14]} Rxf6 {[%emt 0:00:25]} 26. Bxb5 {[%emt 0:02:13]} Qxb5 {[%emt 0:08:09]} 27. Bd4 {[%emt 0:00:07]} Rf7 {[%emt 0:04:47]} 28. Qxe6 {[%emt 0:00:36]} Bf8 {[%emt 0:02:14]} 29. Re1 {[%emt 0:02:47]} Qc6 {[%emt 0:06:13]} 30. b4 {[%emt 0:02:20]} Qxe6 {[%emt 0:01:34]} 31. Rxe6 {[%emt 0:00:03]} Bg7 {[%emt 0:00:42]} 32. Bxg7 {[%emt 0:02:02]} Kxg7 {[%emt 0:00:07]} 33. g3 {[%emt 0:00:08]} Rd8 {[%emt 0:01:03]} 34. Rfe3 {[%emt 0:01:00]} Kf8 {[%emt 0:00:56]} 35. Rd3 {[%emt 0:00:36]} Rfd7 {[%emt 0:00:48]} 36. Rb6 {[%emt 0:00:19]} Rc7 {[%emt 0:00:30]} 37. Kg2 {[%emt 0:00:27]} Kf7 {[%emt 0:00:32]} 38. b5 {[%emt 0:01:02]} axb5 {[%emt 0:00:35]} 39. Rxb5 {[%emt 0:00:05]} Ke6 {[%emt 0:00:25]} 40. Kf3 {[%emt 0:00:00]} Rdd7 {[%emt 0:00:00]} 41. g4 {[%emt 0:12:58]} Rc4 {[%emt 0:03:05]} 42. g5 {[%emt 0:03:33]} Ra4 {[%emt 0:04:25]} 43. Kg4 {[%emt 0:00:51]} Ra2 {[%emt 0:03:08]} 44. h4 {[%emt 0:04:53]} Rg2+ {[%emt 0:02:15]} 45. Kf3 {[%emt 0:01:52]} Rc2 {[%emt 0:00:58]} 46. Rb6+ {[%emt 0:03:01]} Kf7 {[%emt 0:01:45]} 47. h5 {[%emt 0:02:42]} gxh5 {[%emt 0:05:03]} 48. f5 {[%emt 0:02:18]} Rc1 {[%emt 0:01:07]} 49. Kf4 {[%emt 0:01:20]} Rf1+ {[%emt 0:01:10]} 50. Rf3 {[%emt 0:00:04]} Rg1 {[%emt 0:01:31]} 51. Rh6 {[%emt 0:01:45]} Rg4+ {[%emt 0:01:05]} 52. Ke3 {[%emt 0:00:04]} Re7+ {[%emt 0:02:44]} 53. Kd3 {[%emt 0:00:03]} Rxg5 {[%emt 0:01:21]} 54. f6 {[%emt 0:01:25]} Re8 {[%emt 0:01:58]} 55. Rxh7+ {[%emt 0:00:21]} Kf8 {[%emt 0:00:22]} 56. f7 1-0

[Event "POL-chT 2 Liga 2019"]
[Site "Poronin"]
[Date "2019.09.07"]
[Round "1.27"]
[White "Augustyn, Sebastian"]
[Black "Mis, Mieszko"]
[Result "1/2-1/2"]
[ECO "A11"]
[WhiteElo "2171"]
[BlackElo "2320"]
[Annotator "ChessBase"]
[PlyCount "52"]
[EventDate "2019.09.07"]
[EventType "team-tourn"]
[EventCountry "POL"]
[SourceTitle "playchess.com"]
[Source "ChessBase"]
[SourceQuality "1"]
[TimeControl "40/5400+30:1800+30"]

1. c4 c6 2. g3 {[%emt 0:07:27]} d5 {[%emt 0:02:05]} 3. cxd5 {[%emt 0:00:14]} cxd5 {[%emt 0:00:37]} 4. Bg2 {[%emt 0:00:02]} Nf6 {[%emt 0:01:44]} 5. d4 {[%emt 0:01:29]} Nc6 {[%emt 0:00:44]} 6. Nf3 {[%emt 0:00:43]} Bf5 {[%emt 0:01:06]} 7. O-O {[%emt 0:00:55]} e6 {[%emt 0:03:13]} 8. Nc3 {[%emt 0:03:02]} a6 {[%emt 0:04:13]} 9. Nh4 {[%emt 0:25:37]} Be4 {[%emt 0:12:26]} 10. f3 {[%emt 0:13:31]} Bg6 {[%emt 0:00:32]} 11. Nxg6 {[%emt 0:11:00]} hxg6 {[%emt 0:00:15]} 12. Be3 {[%emt 0:00:38]} Be7 {[%emt 0:10:16]} 13. Bf2 {[%emt 0:00:06]} Rc8 {[%emt 0:01:40]} 14. e4 {[%emt 0:02:00]} dxe4 {[%emt 0:04:20]} 15. fxe4 {[%emt 0:00:34]} e5 {[%emt 0:01:04]} 16. dxe5 {[%emt 0:06:50]} Qxd1 {[%emt 0:01:30]} 17. Rfxd1 {[%emt 0:01:31]} Ng4 {[%emt 0:01:37]} 18. Bb6 {[%emt 0:02:48]} Ncxe5 {[%emt 0:01:58]} 19. Nd5 {[%emt 0:06:09]} Rxh2 {[%emt 0:14:48]} 20. Rac1 {[%emt 0:01:39]} Nc4 {[%emt 0:15:23]} 21. Bf3 {[%emt 0:07:30]} Nxb6 {[%emt 0:01:56]} 22. Nc7+ {[%emt 0:06:02]} Rxc7 {[%emt 0:04:57]} 23. Rxc7 {[%emt 0:00:02]} Rh3 {[%emt 0:01:03]} 24. Kg2 {[%emt 0:00:56]} Rh2+ {[%emt 0:00:50]} 25. Kg1 {[%emt 0:00:01]} Rh3 {[%emt 0:00:34]} 26. Kg2 {[%emt 0:00:04]} Rh2+ 1/2-1/2

[Event "POL-chT 2 Liga 2019"]
[Site "Poronin"]
[Date "2019.09.07"]
[Round "1.28"]
[White "Szpar, Milosz"]
[Black "Czarnecki, Wojciech"]
[Result "1-0"]
[ECO "A10"]
[WhiteElo "2309"]
[BlackElo "1980"]
[Annotator "ChessBase"]
[PlyCount "47"]
[EventDate "2019.09.07"]
[EventType "team-tourn"]
[EventCountry "POL"]
[SourceTitle "playchess.com"]
[Source "ChessBase"]
[SourceQuality "1"]
[TimeControl "40/5400+30:1800+30"]

1. c4 {[%emt 0:00:00]} f5 {[%emt 0:00:03]} 2. g3 {[%emt 0:00:35]} Nf6 {[%emt 0:00:16]} 3. Bg2 {[%emt 0:00:20]} g6 {[%emt 0:01:00]} 4. Nc3 {[%emt 0:01:04]} Bg7 {[%emt 0:00:12]} 5. Nf3 {[%emt 0:01:02]} O-O {[%emt 0:00:22]} 6. O-O {[%emt 0:00:57]} c5 {[%emt 0:03:01]} 7. d4 {[%emt 0:10:40]} cxd4 {[%emt 0:08:56]} 8. Nxd4 {[%emt 0:00:27]} Qc7 {[%emt 0:02:03]} 9. Ndb5 {[%emt 0:08:33]} Qd8 {[%emt 0:11:45]} 10. c5 {[%emt 0:06:30]} a6 {[%emt 0:12:12]} 11. Na3 {[%emt 0:03:08]} Qc7 {[%emt 0:04:27]} 12. Nc4 {[%emt 0:02:26]} Nc6 {[%emt 0:22:30]} 13. Rb1 {[%emt 0:05:31]} Rd8 {[%emt 0:05:31]} 14. Bf4 {[%emt 0:08:12]} e5 {[%emt 0:00:53]} 15. Nd5 {[%emt 0:03:11]} Qb8 {[%emt 0:07:37]} 16. Bg5 {[%emt 0:01:40]} Rf8 {[%emt 0:01:00]} 17. Ndb6 {[%emt 0:00:25]} Ra7 {[%emt 0:03:03]} 18. Nd6 {[%emt 0:00:45]} Ne7 {[%emt 0:00:31]} 19. Qb3+ {[%emt 0:00:43]} Kh8 {[%emt 0:01:11]} 20. Nf7+ {[%emt 0:01:16]} Kg8 {[%emt 0:00:33]} 21. Nxe5+ {[%emt 0:00:36]} Kh8 {[%emt 0:00:31]} 22. Nf7+ {[%emt 0:00:17]} Kg8 {[%emt 0:00:06]} 23. Nd6+ {[%emt 0:01:48]} Kh8 {[%emt 0:00:13]} 24. Bf4 {[%emt 0:00:08]} 1-0

[Event "POL-chT 2 Liga 2019"]
[Site "Poronin"]
[Date "2019.09.07"]
[Round "1.30"]
[White "Swiech, Joanna"]
[Black "Jalowiec, Halina"]
[Result "1/2-1/2"]
[ECO "A41"]
[WhiteElo "2055"]
[BlackElo "1842"]
[Annotator "NA"]
[PlyCount "85"]
[EventDate "2019.09.07"]
[EventType "team-tourn"]
[EventCountry "POL"]
[SourceTitle "playchess.com"]
[Source "ChessBase"]
[SourceQuality "1"]
[TimeControl "40/5400+30:1800+30"]

1. d4 {[%emt 0:00:00]} d6 {[%emt 0:00:00]} 2. c4 {[%emt 0:00:00]} e5 {[%emt 0:00:00]} 3. d5 {[%emt 0:00:12]} f5 {[%emt 0:00:21]} 4. Nc3 {[%emt 0:00:31]} Nf6 {[%emt 0:00:23]} 5. Qc2 {[%emt 0:01:22]} Be7 {[%emt 0:00:43]} 6. e4 {[%emt 0:01:41]} fxe4 {[%emt 0:09:32]} 7. Nxe4 {[%emt 0:00:09]} O-O {[%emt 0:00:51]} 8. Bd3 {[%emt 0:01:11]} h6 {[%emt 0:02:04]} 9. Ne2 {[%emt 0:03:19]} Na6 {[%emt 0:00:57]} 10. Bd2 {[%emt 0:06:53]} Nxe4 {[%emt 0:05:16]} 11. Bxe4 {[%emt 0:00:10]} Bg5 {[%emt 0:00:39]} 12. Ng3 {[%emt 0:05:01]} Bxd2+ {[%emt 0:04:49]} 13. Qxd2 {[%emt 0:00:26]} Nc5 {[%emt 0:00:38]} 14. Bb1 {[%emt 0:04:37]} a5 {[%emt 0:04:21]} 15. Qc2 {[%emt 0:08:45]} e4 {[%emt 0:07:59]} 16. O-O {[%emt 0:01:53]} Qh4 {[%emt 0:04:18]} 17. f3 {[%emt 0:05:59]} Bf5 {[%emt 0:07:28]} 18. Qc3 {[%emt 0:39:09]} b6 {[%emt 0:06:20]} 19. Bc2 {[%emt 0:11:11]} Rae8 {[%emt 0:04:40]} 20. a3 {[%emt 0:01:37]} Re5 {[%emt 0:12:50]} 21. b4 {[%emt 0:00:51]} axb4 {[%emt 0:00:19]} 22. axb4 {[%emt 0:00:05]} Nd7 {[%emt 0:03:44]} 23. fxe4 {[%emt 0:01:17]} Bg6 {[%emt 0:01:15]} 24. Rxf8+ {[%emt 0:00:11]} Nxf8 {[%emt 0:00:56]} 25. Qe3 {[%emt 0:01:56]} Qe7 {[%emt 0:02:02]} 26. Qf3 {[%emt 0:00:31]} Nd7 {[%emt 0:00:45]} 27. Re1 {[%emt 0:03:27]} Nf6 {[%emt 0:00:43]} 28. Bd3 {[%emt 0:00:33]} h5 {[%emt 0:00:27]} 29. Re2 {[%emt 0:00:29]} h4 {[%emt 0:02:14]} 30. Nf5 {[%emt 0:00:07]} Bxf5 {[%emt 0:00:11]} 31. exf5 {[%emt 0:00:07]} Rxe2 {[%emt 0:00:35]} 32. Qxe2 {[%emt 0:00:12]} Qxe2 {[%emt 0:03:08]} 33. Bxe2 {[%emt 0:00:05]} Ne4 {[%emt 0:04:03]} 34. Bd3 {[%emt 0:00:14]} Ng5 {[%emt 0:02:39]} 35. Kf2 {[%emt 0:00:44]} Kf7 {[%emt 0:00:30]} 36. Ke3 {[%emt 0:00:37]} Kf6 {[%emt 0:00:26]} 37. Kf4 {[%emt 0:00:19]} Nf7 {[%emt 0:00:14]} 38. Be2 {[%emt 0:02:07]} Ne5 {[%emt 0:00:31]} 39. g4 {[%emt 0:00:43]} hxg3 {[%emt 0:01:12]} 40. hxg3 {[%emt 0:00:00]} Nf7 {[%emt 0:00:00]} 41. g4 {[%emt 0:04:42]} Ng5 {[%emt 0:02:10]} 42. Bf1 {[%emt 0:00:53]} Nf7 {[%emt 0:00:11]} 43. Be2 {[%emt 0:00:08]} 1/2-1/2

[Event "POL-chT 2 Liga 2019"]
[Site "Poronin"]
[Date "2019.09.07"]
[Round "1.31"]
[White "Marszalek, Maciej"]
[Black "Niekras, Dawid"]
[Result "1/2-1/2"]
[ECO "E70"]
[WhiteElo "2301"]
[BlackElo "2296"]
[Annotator "ChessBase"]
[PlyCount "96"]
[EventDate "2019.09.07"]
[EventType "team-tourn"]
[EventCountry "POL"]
[SourceTitle "playchess.com"]
[Source "ChessBase"]
[SourceQuality "1"]
[TimeControl "40/5400+30:1800+30"]

1. d4 {[%emt 0:00:00]} Nf6 {[%emt 0:00:00]} 2. c4 {[%emt 0:00:00]} g6 {[%emt 0:00:00]} 3. Nc3 {[%emt 0:00:10]} Bg7 {[%emt 0:00:00]} 4. e4 {[%emt 0:00:10]} d6 {[%emt 0:00:00]} 5. Bd3 {[%emt 0:00:31]} O-O {[%emt 0:00:03]} 6. Nge2 {[%emt 0:00:10]} Nc6 {[%emt 0:00:06]} 7. O-O {[%emt 0:00:18]} e5 {[%emt 0:00:09]} 8. d5 {[%emt 0:00:14]} Nd4 {[%emt 0:00:22]} 9. Nxd4 {[%emt 0:00:55]} exd4 {[%emt 0:00:07]} 10. Ne2 {[%emt 0:00:37]} Re8 {[%emt 0:00:54]} 11. f3 {[%emt 0:01:22]} Nd7 {[%emt 0:00:48]} 12. Rb1 {[%emt 0:01:58]} c5 {[%emt 0:10:13]} 13. f4 {[%emt 0:11:05]} Nf6 {[%emt 0:20:24]} 14. Ng3 {[%emt 0:00:21]} h5 {[%emt 0:11:08]} 15. Re1 {[%emt 0:06:14]} h4 {[%emt 0:11:05]} 16. Nh1 {[%emt 0:01:56]} Ng4 {[%emt 0:02:26]} 17. Nf2 {[%emt 0:03:12]} Ne3 {[%emt 0:02:49]} 18. Qf3 {[%emt 0:08:38]} b5 {[%emt 0:09:42]} 19. Bxe3 {[%emt 0:03:19]} dxe3 {[%emt 0:00:08]} 20. Rxe3 {[%emt 0:00:22]} Qa5 {[%emt 0:08:23]} 21. e5 {[%emt 0:01:59]} bxc4 {[%emt 0:03:06]} 22. Bxc4 {[%emt 0:01:56]} Bf5 {[%emt 0:01:58]} 23. Rbe1 {[%emt 0:01:58]} Rab8 {[%emt 0:03:28]} 24. Qe2 {[%emt 0:01:54]} dxe5 {[%emt 0:04:35]} 25. fxe5 {[%emt 0:03:51]} Bh6 {[%emt 0:00:09]} 26. Rc3 {[%emt 0:03:25]} Bf4 {[%emt 0:01:26]} 27. e6 {[%emt 0:01:01]} fxe6 {[%emt 0:00:25]} 28. dxe6 {[%emt 0:00:23]} Qc7 {[%emt 0:00:50]} 29. h3 {[%emt 0:10:14]} Re7 {[%emt 0:01:46]} 30. Bd3 {[%emt 0:03:13]} Rbe8 {[%emt 0:03:24]} 31. Bxf5 {[%emt 0:00:36]} gxf5 {[%emt 0:00:02]} 32. Qd3 {[%emt 0:06:28]} Rf8 {[%emt 0:04:26]} 33. b4 {[%emt 0:03:48]} Qd8 {[%emt 0:01:14]} 34. bxc5 {[%emt 0:05:55]} Bd2 {[%emt 0:00:32]} 35. Qxd8 {[%emt 0:00:42]} Rxd8 {[%emt 0:00:02]} 36. Rd1 {[%emt 0:00:09]} Rxe6 {[%emt 0:00:32]} 37. Rc2 {[%emt 0:03:59]} Bg5 {[%emt 0:00:41]} 38. Rxd8+ {[%emt 0:00:23]} Bxd8 {[%emt 0:00:02]} 39. Nd3 {[%emt 0:00:59]} Bc7 {[%emt 0:00:54]} 40. Kf2 {[%emt 0:00:00]} Kf7 41. Kf3 {[%emt 0:00:48]} Re4 {[%emt 0:05:52]} 42. Rb2 {[%emt 0:01:14]} Rd4 {[%emt 0:03:35]} 43. Ke3 {[%emt 0:01:01]} Re4+ {[%emt 0:00:09]} 44. Kf2 {[%emt 0:01:17]} Ke6 {[%emt 0:03:58]} 45. Kf3 {[%emt 0:06:10]} Rd4 {[%emt 0:03:49]} 46. Ke3 {[%emt 0:00:35]} Re4+ {[%emt 0:00:05]} 47. Kf3 {[%emt 0:03:08]} Rd4 {[%emt 0:00:05]} 48. Ke3 {[%emt 0:00:27]} Re4+ {[%emt 0:00:09] Kxe4 Ke5+} 1/2-1/2

[Event "POL-chT 2 Liga 2019"]
[Site "Poronin"]
[Date "2019.09.07"]
[Round "1.32"]
[White "Zakrzewski, Marek"]
[Black "Brzeski, Maciej"]
[Result "0-1"]
[ECO "B32"]
[WhiteElo "2285"]
[BlackElo "2339"]
[Annotator "ChessBase"]
[PlyCount "124"]
[EventDate "2019.09.07"]
[EventType "team-tourn"]
[EventCountry "POL"]
[SourceTitle "playchess.com"]
[Source "ChessBase"]
[SourceQuality "1"]
[TimeControl "40/5400+30:1800+30"]

1. e4 {[%emt 0:00:00]} c5 {[%emt 0:00:06]} 2. Nf3 {[%emt 0:00:00]} Nc6 {[%emt 0:00:09]} 3. d4 {[%emt 0:00:00]} cxd4 {[%emt 0:00:07]} 4. Nxd4 {[%emt 0:00:01]} e5 {[%emt 0:00:07]} 5. Nb5 {[%emt 0:00:17]} d6 {[%emt 0:00:04]} 6. N1c3 {[%emt 0:00:30]} a6 {[%emt 0:00:03]} 7. Na3 {[%emt 0:00:13]} b5 {[%emt 0:00:03]} 8. Nd5 {[%emt 0:00:13]} Nge7 {[%emt 0:00:11]} 9. c4 {[%emt 0:00:13]} Nd4 {[%emt 0:00:04]} 10. Bd3 {[%emt 0:03:47]} Nxd5 {[%emt 0:07:40]} 11. cxd5 {[%emt 0:00:16]} Be7 {[%emt 0:06:00]} 12. O-O {[%emt 0:00:56]} f5 {[%emt 0:16:21]} 13. exf5 {[%emt 0:08:06]} Nxf5 {[%emt 0:03:17]} 14. Nc2 {[%emt 0:08:26]} O-O {[%emt 0:01:19]} 15. a4 {[%emt 0:13:58]} bxa4 {[%emt 0:17:27]} 16. Rxa4 {[%emt 0:01:42]} a5 {[%emt 0:05:31]} 17. Nb4 {[%emt 0:30:20]} Bd7 {[%emt 0:04:12]} 18. Nc6 {[%emt 0:00:10]} Bxc6 {[%emt 0:00:06]} 19. dxc6 {[%emt 0:00:06]} d5 {[%emt 0:00:07]} 20. Bxf5 {[%emt 0:04:24]} Rxf5 {[%emt 0:00:04]} 21. Qc2 {[%emt 0:00:08]} Rf8 {[%emt 0:07:55]} 22. c7 {[%emt 0:06:10]} Qd7 {[%emt 0:03:22]} 23. Bd2 {[%emt 0:00:16]} Bd6 {[%emt 0:01:47]} 24. Rc1 {[%emt 0:03:33]} Bxc7 {[%emt 0:03:38]} 25. Rh4 {[%emt 0:00:30]} g5 {[%emt 0:00:12]} 26. Bxg5 {[%emt 0:04:24]} Bb6 {[%emt 0:00:03]} 27. Rf1 {[%emt 0:02:01]} Rxf2 {[%emt 0:06:20]} 28. Rxf2 {[%emt 0:00:17]} Rf8 {[%emt 0:00:03]} 29. Bf4 {[%emt 0:02:10]} Rxf4 {[%emt 0:07:45]} 30. Rhxf4 {[%emt 0:00:27]} exf4 {[%emt 0:00:03]} 31. Kf1 {[%emt 0:00:30]} Bxf2 {[%emt 0:00:06]} 32. Kxf2 {[%emt 0:01:17]} d4 {[%emt 0:01:07]} 33. Qe4 {[%emt 0:04:02]} Qd6 {[%emt 0:04:38]} 34. Qa8+ {[%emt 0:01:36]} Kg7 {[%emt 0:00:57]} 35. Qxa5 {[%emt 0:00:08]} d3 {[%emt 0:00:51]} 36. Qg5+ {[%emt 0:03:54]} Kh8 {[%emt 0:00:58]} 37. Qh5 {[%emt 0:02:06]} d2 {[%emt 0:00:43]} 38. Qd1 {[%emt 0:00:08]} Qd4+ {[%emt 0:01:48]} 39. Ke2 {[%emt 0:00:12]} Qe3+ {[%emt 0:00:21]} 40. Kf1 {[%emt 0:00:00]} Qd3+ {[%emt 0:00:00]} 41. Kf2 {[%emt 0:00:46]} Qe3+ {[%emt 0:06:42]} 42. Kf1 {[%emt 0:00:07]} Kg7 {[%emt 0:01:29]} 43. b4 {[%emt 0:19:09]} Kf6 {[%emt 0:01:38]} 44. b5 {[%emt 0:00:55]} Ke5 {[%emt 0:00:56]} 45. b6 {[%emt 0:00:28]} Qd3+ {[%emt 0:01:37]} 46. Kf2 {[%emt 0:00:32]} Kd6 {[%emt 0:00:24]} 47. h4 {[%emt 0:04:37]} h5 {[%emt 0:02:24]} 48. Kg1 {[%emt 0:01:47]} Kc6 {[%emt 0:01:27]} 49. Qa4+ {[%emt 0:00:08]} Kxb6 {[%emt 0:00:06]} 50. Qd1 {[%emt 0:02:17]} Kc7 {[%emt 0:03:28]} 51. Kf2 {[%emt 0:00:13]} Qe3+ {[%emt 0:00:42]} 52. Kf1 {[%emt 0:00:05]} Kd6 {[%emt 0:01:33]} 53. Qe2 {[%emt 0:00:14]} Ke7 {[%emt 0:05:50]} 54. Qd1 {[%emt 0:00:38]} Kf6 {[%emt 0:03:49]} 55. Qe2 {[%emt 0:01:25]} Qd4 {[%emt 0:01:09]} 56. Qd1 {[%emt 0:05:03]} Qd3+ {[%emt 0:04:13]} 57. Kf2 {[%emt 0:00:06]} Kg6 {[%emt 0:00:47]} 58. Kg1 {[%emt 0:00:24]} Kf5 {[%emt 0:02:02]} 59. Qxh5+ {[%emt 0:01:11]} Ke4 {[%emt 0:00:05]} 60. Qd1 {[%emt 0:00:26]} f3 {[%emt 0:00:58]} 61. gxf3+ {[%emt 0:01:55]} Ke3 {[%emt 0:00:15]} 62. h5 {[%emt 0:00:12]} Qc4 0-1